[Event "FIDE Women World Rapid 2024"]
[Site "New York"]
[Date "2024.12.27"]
[Round "8.17"]
[White "Melia, Salome"]
[Black "Wu, Rochelle"]
[Result "1-0"]
[ECO "B52"]
[WhiteElo "2293"]
[BlackElo "2237"]
[Annotator "ChessBase"]
[PlyCount "29"]
[EventDate "2024.12.14"]
[EventType "swiss"]
[EventCountry "USA"]
[SourceTitle "playchess.com"]
[Source "ChessBase"]
[SourceQuality "1"]
[TimeControl "900+10"]

1. e4 {[%emt 0:00:01]} c5 {[%emt 0:00:01]} 2. Nf3 {[%emt 0:00:01]} d6 {[%emt 0:00:01]} 3. Bb5+ {[%emt 0:00:02]} Bd7 {[%emt 0:00:57]} 4. c4 {[%emt 0:00:01]} Nc6 {[%emt 0:00:06]} 5. O-O {[%emt 0:00:08]} g6 {[%emt 0:00:04]} 6. d4 {[%emt 0:00:09]} cxd4 {[%emt 0:00:19]} 7. Nxd4 {[%emt 0:00:02]} Bg7 {[%emt 0:00:02]} 8. Bxc6 {[%emt 0:00:59]} bxc6 {[%emt 0:00:01]} 9. c5 {[%emt 0:00:20]} dxc5 {[%emt 0:03:04]} 10. Nb3 {[%emt 0:00:01]} Be6 {[%emt 0:03:04]} 11. Nxc5 {[%emt 0:01:27]} Bc4 {[%emt 0:00:45]} 12. Re1 {[%emt 0:00:21]} Qd4 {[%emt 0:01:14]} 13. Qxd4 {[%emt 0:05:55]} Bxd4 {[%emt 0:00:02]} 14. Nd2 {[%emt 0:00:05]} Bxa2 {[%emt 0:01:56]} 15. Na6 {[%emt 0:00:21]} 1-0

[Event "FIDE Women World Rapid 2024"]
[Site "New York"]
[Date "2024.12.27"]
[Round "8.17"]
[White "Mungunzul, Bat-Erdene"]
[Black "Gunina, Valentina"]
[Result "1/2-1/2"]
[ECO "D17"]
[WhiteElo "2268"]
[BlackElo "2425"]
[Annotator "ChessBase"]
[PlyCount "155"]
[EventDate "2024.12.14"]
[EventType "swiss"]
[EventCountry "USA"]
[SourceTitle "playchess.com"]
[Source "ChessBase"]
[SourceQuality "1"]
[TimeControl "900+10"]

1. d4 {[%emt 0:00:02]} d5 {[%emt 0:00:01]} 2. c4 {[%emt 0:00:02]} c6 {[%emt 0:00:01]} 3. Nc3 {[%emt 0:00:01]} Nf6 {[%emt 0:00:02]} 4. Nf3 {[%emt 0:00:02]} dxc4 {[%emt 0:00:01]} 5. a4 {[%emt 0:00:02]} Bf5 {[%emt 0:00:02]} 6. Ne5 {[%emt 0:00:04]} Nbd7 {[%emt 0:00:03]} 7. Nxc4 {[%emt 0:00:04]} Nb6 {[%emt 0:00:05]} 8. Ne5 {[%emt 0:00:07]} a5 {[%emt 0:00:02]} 9. f3 {[%emt 0:00:07]} Nfd7 {[%emt 0:00:15]} 10. Nxd7 {[%emt 0:00:06]} Bxd7 {[%emt 0:00:03]} 11. e4 {[%emt 0:00:03]} e6 {[%emt 0:00:05]} 12. Be3 {[%emt 0:00:06]} Bb4 {[%emt 0:00:01]} 13. Be2 {[%emt 0:00:05]} O-O {[%emt 0:00:03]} 14. O-O {[%emt 0:00:03]} Rc8 {[%emt 0:00:01]} 15. Qb3 {[%emt 0:01:03]} c5 {[%emt 0:00:23]} 16. dxc5 {[%emt 0:04:55]} Bxc5 {[%emt 0:00:02]} 17. Bxc5 {[%emt 0:00:02]} Rxc5 {[%emt 0:00:01]} 18. Rfd1 {[%emt 0:00:04]} Qc7 {[%emt 0:00:07]} 19. Qa3 {[%emt 0:01:08]} Rc8 {[%emt 0:00:18]} 20. Rd2 {[%emt 0:01:01]} h5 {[%emt 0:01:06]} 21. Rad1 {[%emt 0:00:27]} h4 {[%emt 0:00:40]} 22. h3 {[%emt 0:00:23]} Be8 {[%emt 0:03:01]} 23. Bf1 {[%emt 0:00:02]} Rg5 {[%emt 0:01:48]} 24. Rd6 {[%emt 0:02:13]} Kh7 {[%emt 0:00:48]} 25. Kh1 {[%emt 0:00:18]} Bc6 {[%emt 0:03:37]} 26. R6d2 {[%emt 0:01:17]} Qe5 {[%emt 0:01:27]} 27. Rd4 {[%emt 0:01:26]} Rc7 {[%emt 0:02:04]} 28. Qf8 {[%emt 0:00:45]} Qc5 {[%emt 0:00:18]} 29. Qxc5 {[%emt 0:00:38]} Rxc5 {[%emt 0:00:02]} 30. Ra1 {[%emt 0:00:21]} g5 {[%emt 0:00:21]} 31. Kg1 {[%emt 0:00:01]} Kg7 {[%emt 0:00:05]} 32. Kf2 {[%emt 0:00:03]} Nd7 {[%emt 0:01:12]} 33. Rad1 {[%emt 0:00:48]} Ne5 {[%emt 0:00:01]} 34. Rd8 {[%emt 0:00:04]} Nc4 {[%emt 0:00:31]} 35. Bxc4 {[%emt 0:00:03]} Rxc4 {[%emt 0:00:01]} 36. R8d4 {[%emt 0:00:22]} Rb4 {[%emt 0:00:03]} 37. R1d2 {[%emt 0:00:03]} Be8 {[%emt 0:00:32]} 38. Ke3 {[%emt 0:00:07]} Rb3 {[%emt 0:00:06]} 39. Kf2 {[%emt 0:00:32]} Rc8 {[%emt 0:00:01]} 40. g3 {[%emt 0:01:02]} hxg3+ {[%emt 0:00:02]} 41. Kxg3 {[%emt 0:00:01]} Kf6 {[%emt 0:00:44]} 42. h4 {[%emt 0:00:47]} gxh4+ {[%emt 0:00:01]} 43. Kxh4 {[%emt 0:00:01]} Ke7 {[%emt 0:00:16]} 44. Kg3 {[%emt 0:00:35]} Bc6 {[%emt 0:00:23]} 45. Kf4 {[%emt 0:00:00]} Rh8 {[%emt 0:00:18]} 46. Ke3 {[%emt 0:00:00]} Rh3 {[%emt 0:00:13]} 47. Rf2 {[%emt 0:00:18]} Rh1 {[%emt 0:00:21]} 48. f4 {[%emt 0:00:25]} Rh3+ {[%emt 0:00:05]} 49. Rf3 {[%emt 0:00:10]} Rxf3+ {[%emt 0:00:01]} 50. Kxf3 {[%emt 0:00:02]} Rxb2 {[%emt 0:00:02]} 51. Ke3 {[%emt 0:00:01]} Rh2 {[%emt 0:00:13]} 52. Rc4 {[%emt 0:00:25]} Rh3+ {[%emt 0:00:14]} 53. Kd2 {[%emt 0:00:15]} f6 {[%emt 0:00:22]} 54. Rc5 {[%emt 0:00:10]} Rf3 {[%emt 0:00:02]} 55. f5 {[%emt 0:00:25]} exf5 {[%emt 0:00:02]} 56. exf5 {[%emt 0:00:01]} Bd7 {[%emt 0:00:44]} 57. Rxa5 {[%emt 0:00:22]} Rxf5 {[%emt 0:00:16]} 58. Ra7 {[%emt 0:00:02]} Bc6 {[%emt 0:00:07]} 59. a5 {[%emt 0:00:02]} Kd6 {[%emt 0:00:17]} 60. a6 {[%emt 0:00:44]} b5 {[%emt 0:00:05]} 61. Rf7 {[%emt 0:00:05]} b4 {[%emt 0:00:25]} 62. Nd1 {[%emt 0:00:31]} Rd5+ {[%emt 0:00:26]} 63. Kc1 {[%emt 0:00:00]} Ke6 {[%emt 0:00:20]} 64. Rc7 {[%emt 0:00:00]} Rc5+ {[%emt 0:00:03]} 65. Kb2 {[%emt 0:00:00]} Kd6 {[%emt 0:00:06]} 66. Rf7 {[%emt 0:00:00]} Ra5 {[%emt 0:00:13]} 67. a7 {[%emt 0:00:11]} Bd7 {[%emt 0:00:20]} 68. Rxf6+ {[%emt 0:00:14]} Be6 {[%emt 0:00:01]} 69. Ne3 {[%emt 0:00:15]} Rxa7 {[%emt 0:00:05]} 70. Nc4+ {[%emt 0:00:10]} Kd5 {[%emt 0:00:04]} 71. Rf4 {[%emt 0:00:02]} Rc7 {[%emt 0:00:04]} 72. Ne3+ {[%emt 0:00:23]} Kc5 {[%emt 0:00:05]} 73. Nc2 {[%emt 0:00:01]} Bc4 {[%emt 0:00:44]} 74. Rf5+ {[%emt 0:00:15]} Kd6 {[%emt 0:00:01]} 75. Nxb4 {[%emt 0:00:06]} Be6 {[%emt 0:00:04]} 76. Rh5 {[%emt 0:00:06]} Rc4 {[%emt 0:00:06]} 77. Nc2 {[%emt 0:00:06]} Rf4 {[%emt 0:00:06]} 78. Kc3 {[%emt 0:00:23]} 1/2-1/2

[Event "FIDE Women World Rapid 2024"]
[Site "New York"]
[Date "2024.12.27"]
[Round "8.18"]
[White "Maltsevskaya, Aleksandra"]
[Black "Krush, Irina"]
[Result "0-1"]
[ECO "B51"]
[WhiteElo "2368"]
[BlackElo "2378"]
[Annotator "ChessBase"]
[PlyCount "104"]
[EventDate "2024.12.14"]
[EventType "swiss"]
[EventCountry "USA"]
[SourceTitle "playchess.com"]
[Source "ChessBase"]
[SourceQuality "1"]
[TimeControl "900+10"]

1. e4 {[%emt 0:00:01]} c5 {[%emt 0:00:01]} 2. Nf3 {[%emt 0:00:02]} d6 {[%emt 0:00:02]} 3. Bb5+ {[%emt 0:00:03]} Nd7 {[%emt 0:00:02]} 4. d4 {[%emt 0:00:03]} cxd4 {[%emt 0:00:05]} 5. Nxd4 {[%emt 0:00:02]} Ngf6 {[%emt 0:00:09]} 6. O-O {[%emt 0:00:03]} e6 {[%emt 0:00:20]} 7. Re1 {[%emt 0:01:52]} Be7 {[%emt 0:00:07]} 8. Bd3 {[%emt 0:03:03]} Nc5 {[%emt 0:01:08]} 9. c4 {[%emt 0:00:13]} Nxd3 {[%emt 0:00:12]} 10. Qxd3 {[%emt 0:00:02]} O-O {[%emt 0:00:23]} 11. Nc3 {[%emt 0:00:03]} a6 {[%emt 0:00:47]} 12. b3 {[%emt 0:01:17]} Qc7 {[%emt 0:00:02]} 13. Bb2 {[%emt 0:00:07]} b6 {[%emt 0:00:01]} 14. Rad1 {[%emt 0:00:40]} Bb7 {[%emt 0:00:04]} 15. Qg3 {[%emt 0:00:02]} Rfd8 {[%emt 0:02:13]} 16. Nd5 {[%emt 0:06:36]} exd5 {[%emt 0:00:40]} 17. Nf5 {[%emt 0:00:02]} Nh5 {[%emt 0:02:35]} 18. Qg4 {[%emt 0:00:01]} g6 {[%emt 0:00:01]} 19. exd5 {[%emt 0:03:18]} Re8 {[%emt 0:02:12]} 20. Nh6+ {[%emt 0:00:38]} Kf8 {[%emt 0:00:00]} 21. h4 {[%emt 0:00:20]} Bf6 {[%emt 0:00:27]} 22. Bxf6 {[%emt 0:00:07]} Nxf6 {[%emt 0:00:01]} 23. Qd4 {[%emt 0:00:04]} Re5 {[%emt 0:01:07]} 24. Rxe5 {[%emt 0:00:13]} dxe5 {[%emt 0:00:01]} 25. Qe3 {[%emt 0:00:01]} Qd6 {[%emt 0:01:18]} 26. a3 {[%emt 0:00:10]} a5 {[%emt 0:00:14]} 27. Re1 {[%emt 0:00:02]} Re8 {[%emt 0:00:03]} 28. Rb1 {[%emt 0:00:31]} Qc5 {[%emt 0:00:53]} 29. Qf3 {[%emt 0:00:12]} Kg7 {[%emt 0:00:17]} 30. Re1 {[%emt 0:00:05]} Qxa3 {[%emt 0:02:40]} 31. g4 {[%emt 0:00:13]} Qe7 {[%emt 0:00:03]} 32. g5 {[%emt 0:00:04]} Nd7 {[%emt 0:00:51]} 33. Ng4 {[%emt 0:00:16]} Qd6 {[%emt 0:00:13]} 34. Re3 {[%emt 0:00:11]} Bc8 {[%emt 0:00:21]} 35. Qg3 {[%emt 0:00:05]} f5 {[%emt 0:00:27]} 36. gxf6+ {[%emt 0:00:04]} Nxf6 {[%emt 0:00:01]} 37. Nxe5 {[%emt 0:00:07]} Nh5 {[%emt 0:00:07]} 38. Qh2 {[%emt 0:00:24]} Rf8 {[%emt 0:00:45]} 39. Qg2 {[%emt 0:00:08]} Nf4 {[%emt 0:00:07]} 40. Qe4 {[%emt 0:00:10]} Nh3+ {[%emt 0:00:08]} 41. Kg2 {[%emt 0:00:10]} Rxf2+ {[%emt 0:00:10]} 42. Kg3 {[%emt 0:00:01]} Rf4 {[%emt 0:00:15]} 43. Qd3 {[%emt 0:00:14]} Rg4+ {[%emt 0:00:08]} 44. Kh2 {[%emt 0:00:08]} Rg2+ {[%emt 0:00:08]} 45. Kxg2 {[%emt 0:00:20]} Nf4+ {[%emt 0:00:01]} 46. Kf3 {[%emt 0:00:03]} Nxd3 {[%emt 0:00:04]} 47. Nxd3 {[%emt 0:00:01]} Qh2 {[%emt 0:00:14]} 48. Nf4 {[%emt 0:00:17]} Qxh4 {[%emt 0:00:10]} 49. Ng2 {[%emt 0:00:19]} Bg4+ {[%emt 0:00:17]} 50. Ke4 {[%emt 0:00:04]} Qh1 {[%emt 0:00:17]} 51. Rg3 {[%emt 0:00:09]} Bh3 {[%emt 0:00:08]} 52. Kf3 {[%emt 0:00:04]} Qf1+ {[%emt 0:00:07]} 0-1

[Event "FIDE Women World Rapid 2024"]
[Site "New York"]
[Date "2024.12.27"]
[Round "8.18"]
[White "Cervantes Landeiro, Thalia"]
[Black "Sultanbek, Zeinep"]
[Result "1-0"]
[ECO "B50"]
[WhiteElo "2307"]
[BlackElo "2101"]
[Annotator "ChessBase"]
[PlyCount "69"]
[EventDate "2024.12.14"]
[EventType "swiss"]
[EventCountry "USA"]
[SourceTitle "playchess.com"]
[Source "ChessBase"]
[SourceQuality "1"]
[TimeControl "900+10"]

1. d4 {[%emt 0:00:02]} Nf6 {[%emt 0:00:01]} 2. c4 {[%emt 0:00:01]} g6 {[%emt 0:00:01]} 3. Nc3 {[%emt 0:00:02]} Bg7 {[%emt 0:00:01]} 4. e4 {[%emt 0:00:02]} O-O {[%emt 0:00:02]} 5. Nf3 {[%emt 0:00:02]} c6 {[%emt 0:00:01]} 6. Bd3 {[%emt 0:00:53]} d6 {[%emt 0:00:04]} 7. O-O {[%emt 0:00:19]} Nbd7 {[%emt 0:00:01]} 8. h3 {[%emt 0:00:36]} e5 {[%emt 0:00:01]} 9. d5 {[%emt 0:00:57]} cxd5 {[%emt 0:00:02]} 10. cxd5 {[%emt 0:00:19]} Nc5 {[%emt 0:00:02]} 11. Bc2 {[%emt 0:02:16]} a5 {[%emt 0:00:02]} 12. Be3 {[%emt 0:00:09]} b6 {[%emt 0:00:00]} 13. a3 {[%emt 0:00:22]} Nh5 {[%emt 0:01:31]} 14. b4 {[%emt 0:00:26]} axb4 {[%emt 0:00:01]} 15. axb4 {[%emt 0:00:01]} Rxa1 {[%emt 0:00:02]} 16. Qxa1 {[%emt 0:00:02]} Na6 {[%emt 0:00:01]} 17. b5 {[%emt 0:05:16]} Nc5 {[%emt 0:00:02]} 18. Na4 {[%emt 0:00:37]} Nf4 {[%emt 0:00:44]} 19. Nxc5 {[%emt 0:00:15]} dxc5 {[%emt 0:00:21]} 20. Qd1 {[%emt 0:02:08]} Bd7 {[%emt 0:00:24]} 21. Bxf4 {[%emt 0:00:25]} exf4 {[%emt 0:00:01]} 22. Bd3 {[%emt 0:00:11]} Re8 {[%emt 0:01:53]} 23. Qd2 {[%emt 0:00:13]} g5 {[%emt 0:00:03]} 24. Re1 {[%emt 0:00:14]} h5 {[%emt 0:00:05]} 25. Nh2 {[%emt 0:02:15]} Qf6 {[%emt 0:02:25]} 26. Qd1 {[%emt 0:00:25]} Qd4 {[%emt 0:00:42]} 27. Nf3 {[%emt 0:00:12]} Qf6 {[%emt 0:00:08]} 28. e5 {[%emt 0:00:04]} Qh6 {[%emt 0:00:01]} 29. e6 {[%emt 0:00:39]} fxe6 {[%emt 0:00:07]} 30. dxe6 {[%emt 0:00:01]} Bxe6 {[%emt 0:00:13]} 31. Bc4 {[%emt 0:00:01]} Qg6 {[%emt 0:01:45]} 32. Bxe6+ {[%emt 0:00:11]} Rxe6 {[%emt 0:00:02]} 33. Qd5 {[%emt 0:00:01]} g4 {[%emt 0:00:35]} 34. Rxe6 {[%emt 0:00:09]} Qf7 {[%emt 0:00:22]} 35. Ng5 {[%emt 0:00:07]} 1-0

[Event "FIDE Women World Rapid 2024"]
[Site "New York"]
[Date "2024.12.27"]
[Round "8.19"]
[White "Nurman, Alua"]
[Black "Kamalidenova, Meruert"]
[Result "0-1"]
[ECO "B72"]
[WhiteElo "2330"]
[BlackElo "2378"]
[Annotator "ChessBase"]
[PlyCount "94"]
[EventDate "2024.12.14"]
[EventType "swiss"]
[EventCountry "USA"]
[SourceTitle "playchess.com"]
[Source "ChessBase"]
[SourceQuality "1"]
[TimeControl "900+10"]

1. e4 {[%emt 0:00:01]} c5 {[%emt 0:00:02]} 2. Nf3 {[%emt 0:00:02]} d6 {[%emt 0:00:02]} 3. d4 {[%emt 0:00:09]} cxd4 {[%emt 0:00:03]} 4. Nxd4 {[%emt 0:00:01]} Nf6 {[%emt 0:00:03]} 5. Nc3 {[%emt 0:00:01]} g6 {[%emt 0:00:05]} 6. Be3 {[%emt 0:00:04]} Nc6 {[%emt 0:00:02]} 7. f3 {[%emt 0:00:04]} h5 {[%emt 0:00:03]} 8. Qd2 {[%emt 0:00:06]} Nxd4 {[%emt 0:00:03]} 9. Qxd4 {[%emt 0:00:09]} Bg7 {[%emt 0:00:10]} 10. O-O-O {[%emt 0:00:40]} Be6 {[%emt 0:00:13]} 11. Bb5+ {[%emt 0:01:26]} Kf8 {[%emt 0:00:04]} 12. e5 {[%emt 0:00:13]} Nd7 {[%emt 0:00:16]} 13. f4 {[%emt 0:00:09]} a6 {[%emt 0:01:55]} 14. Bxd7 {[%emt 0:00:34]} Qxd7 {[%emt 0:00:03]} 15. Qb4 {[%emt 0:00:53]} a5 {[%emt 0:00:50]} 16. Qb5 {[%emt 0:02:32]} Qxb5 {[%emt 0:01:07]} 17. Nxb5 {[%emt 0:00:01]} Bg4 {[%emt 0:00:03]} 18. Rd5 {[%emt 0:01:41]} dxe5 {[%emt 0:00:16]} 19. fxe5 {[%emt 0:00:02]} Be6 {[%emt 0:00:24]} 20. Rc5 {[%emt 0:00:01]} b6 {[%emt 0:00:06]} 21. Rc6 {[%emt 0:01:10]} Bxe5 {[%emt 0:00:05]} 22. Bd4 {[%emt 0:01:07]} Bxd4 {[%emt 0:00:51]} 23. Nxd4 {[%emt 0:00:01]} Bd5 {[%emt 0:00:07]} 24. Rxb6 {[%emt 0:00:02]} Bxg2 {[%emt 0:00:03]} 25. Re1 {[%emt 0:00:01]} h4 {[%emt 0:00:31]} 26. Nc6 {[%emt 0:01:08]} e6 {[%emt 0:00:26]} 27. Ne5 {[%emt 0:00:25]} h3 {[%emt 0:00:31]} 28. Rd6 {[%emt 0:00:38]} Rh5 {[%emt 0:00:36]} 29. c4 {[%emt 0:00:42]} Rc8 {[%emt 0:00:36]} 30. Kd2 {[%emt 0:00:07]} Kg7 {[%emt 0:00:22]} 31. b3 {[%emt 0:00:40]} Rf5 {[%emt 0:00:09]} 32. Nd3 {[%emt 0:00:23]} g5 {[%emt 0:00:23]} 33. Rd7 {[%emt 0:00:06]} g4 {[%emt 0:00:19]} 34. Re3 {[%emt 0:00:08]} Kf6 {[%emt 0:01:16]} 35. Rg3 {[%emt 0:00:11]} Kg5 {[%emt 0:00:26]} 36. Ke3 {[%emt 0:00:04]} Rf1 {[%emt 0:00:22]} 37. Ra7 {[%emt 0:00:59]} f5 {[%emt 0:00:38]} 38. Rxa5 {[%emt 0:00:02]} Rd8 {[%emt 0:00:14]} 39. Re5 {[%emt 0:01:13]} Kf6 {[%emt 0:00:36]} 40. Ra5 {[%emt 0:00:13]} e5 {[%emt 0:00:09]} 41. Ke2 {[%emt 0:00:26]} e4 {[%emt 0:00:33]} 42. Nb4 {[%emt 0:00:12]} Rdd1 {[%emt 0:00:15]} 43. Nd5+ {[%emt 0:00:01]} Kf7 {[%emt 0:01:22]} 44. Ra7+ {[%emt 0:00:15]} Kg6 {[%emt 0:00:08]} 45. Nf4+ {[%emt 0:00:05]} Kg5 {[%emt 0:00:25]} 46. Nxg2 {[%emt 0:00:10]} hxg2 {[%emt 0:00:03]} 47. Rxg2 {[%emt 0:00:01]} Rfe1+ {[%emt 0:00:06]} 0-1

[Event "FIDE Women World Rapid 2024"]
[Site "New York"]
[Date "2024.12.27"]
[Round "8.19"]
[White "Zhukova, Natalia"]
[Black "Serikbay, Assel"]
[Result "1-0"]
[ECO "A29"]
[WhiteElo "2302"]
[BlackElo "2236"]
[Annotator "ChessBase"]
[PlyCount "95"]
[EventDate "2024.12.14"]
[EventType "swiss"]
[EventCountry "USA"]
[SourceTitle "playchess.com"]
[Source "ChessBase"]
[SourceQuality "1"]
[TimeControl "900+10"]

1. c4 {[%emt 0:00:03]} e5 {[%emt 0:00:01]} 2. Nc3 {[%emt 0:00:01]} Nf6 {[%emt 0:00:02]} 3. Nf3 {[%emt 0:00:02]} Nc6 {[%emt 0:00:02]} 4. g3 {[%emt 0:00:03]} Bb4 {[%emt 0:00:02]} 5. Bg2 {[%emt 0:00:02]} O-O {[%emt 0:00:06]} 6. O-O {[%emt 0:00:08]} Re8 {[%emt 0:02:03]} 7. Nd5 {[%emt 0:00:07]} Bf8 {[%emt 0:00:23]} 8. d3 {[%emt 0:00:13]} h6 {[%emt 0:00:15]} 9. b3 {[%emt 0:00:30]} d6 {[%emt 0:00:05]} 10. Bb2 {[%emt 0:00:24]} Be6 {[%emt 0:00:02]} 11. e4 {[%emt 0:03:45]} Bxd5 {[%emt 0:00:02]} 12. cxd5 {[%emt 0:00:31]} Ne7 {[%emt 0:00:02]} 13. Re1 {[%emt 0:01:42]} c6 {[%emt 0:01:41]} 14. dxc6 {[%emt 0:00:06]} Nxc6 {[%emt 0:00:01]} 15. d4 {[%emt 0:00:01]} Rc8 {[%emt 0:00:45]} 16. Rc1 {[%emt 0:00:57]} Qa5 {[%emt 0:04:28]} 17. Bc3 {[%emt 0:02:47]} Qb6 {[%emt 0:00:11]} 18. d5 {[%emt 0:00:35]} Nb8 {[%emt 0:00:13]} 19. Qd2 {[%emt 0:00:19]} Rc5 {[%emt 0:01:13]} 20. b4 {[%emt 0:02:13]} Rc4 {[%emt 0:00:19]} 21. Qd3 {[%emt 0:00:02]} Rec8 {[%emt 0:01:07]} 22. Nd2 {[%emt 0:00:06]} R4c7 {[%emt 0:00:01]} 23. Bh3 {[%emt 0:01:22]} Nbd7 {[%emt 0:00:21]} 24. a4 {[%emt 0:00:13]} a6 {[%emt 0:00:06]} 25. a5 {[%emt 0:00:34]} Qb5 {[%emt 0:02:04]} 26. Qe3 {[%emt 0:01:59]} Nxd5 {[%emt 0:02:21]} 27. exd5 {[%emt 0:00:04]} Qxd5 {[%emt 0:00:00]} 28. Bb2 {[%emt 0:00:25]} Rxc1 {[%emt 0:01:15]} 29. Rxc1 {[%emt 0:00:24]} Rxc1+ {[%emt 0:00:01]} 30. Bxc1 {[%emt 0:00:01]} Qc6 {[%emt 0:00:05]} 31. Nf3 {[%emt 0:00:24]} Nf6 {[%emt 0:00:03]} 32. Bd2 {[%emt 0:00:05]} Qc2 {[%emt 0:00:33]} 33. Ne1 {[%emt 0:00:17]} Qb1 {[%emt 0:00:14]} 34. Qd3 {[%emt 0:00:10]} Qd1 {[%emt 0:00:07]} 35. Bg2 {[%emt 0:00:06]} e4 {[%emt 0:00:12]} 36. Qc2 {[%emt 0:00:07]} Qe2 {[%emt 0:00:05]} 37. Bc3 {[%emt 0:00:06]} Qxc2 {[%emt 0:00:26]} 38. Nxc2 {[%emt 0:00:01]} Nd5 {[%emt 0:00:03]} 39. Bd2 {[%emt 0:00:10]} f5 {[%emt 0:00:01]} 40. g4 {[%emt 0:00:11]} g6 {[%emt 0:00:05]} 41. gxf5 {[%emt 0:00:03]} gxf5 {[%emt 0:00:01]} 42. Nd4 {[%emt 0:00:18]} Ne7 {[%emt 0:00:16]} 43. Bh3 {[%emt 0:00:07]} d5 {[%emt 0:00:12]} 44. Bxf5 {[%emt 0:00:20]} Bg7 {[%emt 0:00:32]} 45. Be6+ {[%emt 0:00:02]} Kf8 {[%emt 0:00:02]} 46. Nf5 {[%emt 0:00:10]} Nxf5 {[%emt 0:00:13]} 47. Bxf5 {[%emt 0:00:01]} Ke7 {[%emt 0:00:12]} 48. Bc8 {[%emt 0:00:03]} 1-0

[Event "FIDE Women World Rapid 2024"]
[Site "New York"]
[Date "2024.12.27"]
[Round "8.20"]
[White "Shuvalova, Polina"]
[Black "Kairbekova, Amina"]
[Result "0-1"]
[ECO "B30"]
[WhiteElo "2504"]
[BlackElo "2309"]
[Annotator "ChessBase"]
[PlyCount "148"]
[EventDate "2024.12.14"]
[EventType "swiss"]
[EventCountry "USA"]
[SourceTitle "playchess.com"]
[Source "ChessBase"]
[SourceQuality "1"]
[TimeControl "900+10"]

1. e4 {[%emt 0:00:02]} c5 {[%emt 0:00:01]} 2. Nf3 {[%emt 0:00:01]} Nc6 {[%emt 0:00:01]} 3. Bb5 {[%emt 0:00:03]} e6 {[%emt 0:00:01]} 4. Bxc6 {[%emt 0:00:20]} bxc6 {[%emt 0:00:02]} 5. b3 {[%emt 0:00:02]} Ne7 {[%emt 0:00:02]} 6. Bb2 {[%emt 0:00:29]} d6 {[%emt 0:00:06]} 7. e5 {[%emt 0:00:04]} Nf5 {[%emt 0:00:02]} 8. d3 {[%emt 0:00:11]} f6 {[%emt 0:00:48]} 9. exd6 {[%emt 0:00:20]} Bxd6 {[%emt 0:00:03]} 10. Nbd2 {[%emt 0:00:03]} e5 {[%emt 0:01:48]} 11. Ne4 {[%emt 0:00:03]} Be7 {[%emt 0:00:28]} 12. O-O {[%emt 0:00:11]} O-O {[%emt 0:00:45]} 13. a4 {[%emt 0:00:03]} Nd4 {[%emt 0:00:52]} 14. h3 {[%emt 0:00:32]} Ne6 {[%emt 0:01:09]} 15. Ba3 {[%emt 0:00:38]} Qe8 {[%emt 0:00:14]} 16. Kh2 {[%emt 0:00:13]} Qh5 {[%emt 0:03:34]} 17. Nfd2 {[%emt 0:00:54]} Qg6 {[%emt 0:01:00]} 18. Nc4 {[%emt 0:00:10]} f5 {[%emt 0:01:52]} 19. Nxe5 {[%emt 0:01:17]} Qh6 {[%emt 0:02:22]} 20. Ng3 {[%emt 0:02:14]} f4 {[%emt 0:01:10]} 21. Ne4 {[%emt 0:00:04]} Nd4 {[%emt 0:01:28]} 22. f3 {[%emt 0:01:27]} Qh5 {[%emt 0:00:10]} 23. Ng4 {[%emt 0:00:22]} Bxg4 {[%emt 0:00:03]} 24. fxg4 {[%emt 0:00:03]} Qe5 {[%emt 0:00:01]} 25. Bb2 {[%emt 0:01:06]} f3+ {[%emt 0:00:18]} 26. g3 {[%emt 0:00:06]} Rf7 {[%emt 0:00:35]} 27. Bxd4 {[%emt 0:00:52]} Qxd4 {[%emt 0:00:03]} 28. Qd2 {[%emt 0:00:02]} Raf8 {[%emt 0:00:11]} 29. Rae1 {[%emt 0:00:26]} Qd5 {[%emt 0:00:39]} 30. Qc3 {[%emt 0:00:30]} h5 {[%emt 0:00:02]} 31. gxh5 {[%emt 0:00:07]} Qxh5 {[%emt 0:00:02]} 32. Qc4 {[%emt 0:00:09]} Kh8 {[%emt 0:00:03]} 33. Rf2 {[%emt 0:00:12]} Qe5 {[%emt 0:00:29]} 34. Qc3 {[%emt 0:00:46]} Qd5 {[%emt 0:00:02]} 35. Ref1 {[%emt 0:00:04]} Rf5 {[%emt 0:00:03]} 36. Qc4 {[%emt 0:01:12]} Qe5 {[%emt 0:00:01]} 37. Nd2 {[%emt 0:02:26]} Bd6 {[%emt 0:00:28]} 38. Rg1 {[%emt 0:00:35]} Rh5 {[%emt 0:00:17]} 39. Qe4 {[%emt 0:00:38]} Qc3 {[%emt 0:00:14]} 40. Nxf3 {[%emt 0:00:25]} Qf6 {[%emt 0:00:03]} 41. Rgg2 {[%emt 0:00:30]} Qh6 {[%emt 0:00:09]} 42. Qg4 {[%emt 0:00:15]} Rf6 {[%emt 0:00:08]} 43. h4 {[%emt 0:00:16]} Rxf3 {[%emt 0:00:06]} 44. Kh3 {[%emt 0:01:22]} Rxf2 {[%emt 0:00:22]} 45. Rxf2 {[%emt 0:00:01]} Re5 {[%emt 0:00:08]} 46. Rf7 {[%emt 0:00:40]} Qe6 {[%emt 0:00:12]} 47. Qxe6 {[%emt 0:00:14]} Rxe6 {[%emt 0:00:01]} 48. Rxa7 {[%emt 0:00:01]} Re3 {[%emt 0:00:06]} 49. Kg4 {[%emt 0:00:05]} Kh7 {[%emt 0:00:05]} 50. Rd7 {[%emt 0:00:15]} Be5 {[%emt 0:00:28]} 51. Kf5 {[%emt 0:00:10]} Bc3 {[%emt 0:00:06]} 52. g4 {[%emt 0:00:09]} Rf3+ {[%emt 0:00:12]} 53. Ke6 {[%emt 0:00:25]} Rf6+ {[%emt 0:00:09]} 54. Ke7 {[%emt 0:00:01]} Rf4 {[%emt 0:00:02]} 55. Kd6 {[%emt 0:00:19]} Rxg4 {[%emt 0:00:20]} 56. Kxc5 {[%emt 0:00:02]} Rxh4 {[%emt 0:00:03]} 57. d4 {[%emt 0:00:00]} Rh2 {[%emt 0:00:13]} 58. Kxc6 {[%emt 0:00:24]} Rxc2 {[%emt 0:00:02]} 59. Kb5 {[%emt 0:00:02]} Ra2 {[%emt 0:00:22]} 60. d5 {[%emt 0:00:05]} Kg6 {[%emt 0:00:07]} 61. Rc7 {[%emt 0:00:05]} Be5 {[%emt 0:00:06]} 62. Rc4 {[%emt 0:00:21]} Ra3 {[%emt 0:00:10]} 63. b4 {[%emt 0:00:06]} Kf5 {[%emt 0:00:01]} 64. a5 {[%emt 0:00:09]} g5 {[%emt 0:00:00]} 65. Kc6 {[%emt 0:00:03]} g4 {[%emt 0:00:05]} 66. Rc2 {[%emt 0:00:28]} g3 {[%emt 0:00:18]} 67. Rg2 {[%emt 0:00:07]} Ke4 {[%emt 0:00:19]} 68. d6 {[%emt 0:00:17]} Rc3+ {[%emt 0:00:08]} 69. Kb6 {[%emt 0:00:13]} Bxd6 {[%emt 0:00:03]} 70. b5 {[%emt 0:00:11]} Kf3 {[%emt 0:00:03]} 71. Rxg3+ {[%emt 0:00:08]} Bxg3 {[%emt 0:00:06]} 72. a6 {[%emt 0:00:02]} Bf2+ {[%emt 0:00:04]} 73. Kb7 {[%emt 0:00:01]} Rb3 {[%emt 0:00:21]} 74. a7 {[%emt 0:00:02]} Bxa7 {[%emt 0:00:02]} 0-1